fUSD/lending_fUSD_20251220
["ID","MTS","AMOUNT","RATE_DAILY","PERIOD"]
[399263025,1766217045368,-1790.84096348,0.000169,2]
[399263026,1766217045377,-150.34870908,0.000169,2]
[399263027,1766217045386,-14639.0,0.000169,2]
[399263028,1766217045395,-150.10981544,0.00016973,2]
[399263029,1766217045404,-150.09235231,0.00016973,2]
[399263030,1766217045413,-163.39899626,0.00016973,2]
[399263031,1766217045423,-150.0,0.00016973,2]
[399263032,1766217045432,-150.0,0.00016973,2]
[399263033,1766217045441,-217.8076658,0.00016983,2]
[399263034,1766217045450,-502.72873528,0.00016983,2]
[399263035,1766217045460,-494.0,0.00016986,2]
[399263036,1766217045469,-500.0,0.00016986,2]
[399263037,1766217045478,-500.0,0.00016986,2]
[399263038,1766217045487,-500.0,0.00016986,2]
[399263039,1766217045497,-500.0,0.00016986,2]
[399263040,1766217045506,-500.0,0.00016986,2]
[399263041,1766217045519,-794.0,0.00016986,2]
[399263042,1766217045530,-500.0,0.00016986,2]
[399263043,1766217045541,-500.0,0.00016986,2]
[399263044,1766217045551,-150.0,0.00016986,2]
[399263045,1766217045561,-200.0,0.00016986,2]
[399263046,1766217045573,-200.0,0.00016986,2]
[399263047,1766217045584,-150.0,0.00016986,2]
[399263048,1766217045595,-167.42824898,0.00016986,2]
[399263049,1766217045604,-500.0,0.00016986,2]
[399263050,1766217045616,-500.0,0.00016986,2]
[399263051,1766217045625,-164.76564826,0.00016986,2]
[399263052,1766217045635,-500.0,0.0001699,2]
[399263053,1766217045644,-1550.14356683,0.0001699,2]
[399263054,1766217045653,-1550.14356683,0.0001699,2]
[399263055,1766217045663,-71755.5931145,0.00016991,2]
[399263056,1766217045673,-8598.9499199,0.00016991,2]
[399263057,1766217045683,-165852.1587725,0.00016991,2]
[399263058,1766217045691,-151.0,0.00016997,2]
[399263059,1766217045701,-1500.0,0.00016998,2]
[399263060,1766217045710,-1500.0,0.00016998,2]
[399263061,1766217045720,-1527.47643038,0.00016998,2]
[399263062,1766217045730,-500.0,0.00016998,2]
[399263063,1766217045739,-500.0,0.00016998,2]
[399263064,1766217045749,-500.0,0.00016998,2]
[399263065,1766217045758,-642.69443283,0.00016998,2]
[399263066,1766217045768,-308.45911544,0.00016999,2]
[399263067,1766217045777,-500.0,0.00016999,2]
[399263068,1766217045788,-500.0,0.00016999,2]
[399263069,1766217045799,-500.0,0.00016999,2]
[399263070,1766217045811,-500.0,0.00016999,2]
[399263071,1766217045821,-500.0,0.00016999,2]
[399263072,1766217045831,-500.0,0.00016999,2]
[399263073,1766217045841,-500.0,0.00016999,2]
[399263074,1766217045852,-500.0,0.00016999,2]
[399263075,1766217045861,-500.0,0.00016999,2]
[399263076,1766217045870,-500.0,0.00016999,2]
[399263077,1766217045881,-592.36853989,0.00016999,2]
[399263078,1766217045890,-88814.65815868,0.00017,2]
[399263079,1766217045902,-3500.0,0.00017,2]
[399263080,1766217045911,-3532.30254333,0.00017,2]
[399263081,1766217045920,-150.0,0.00017,7]
[399263082,1766217045930,-913.72062948,0.00017,2]
[399263083,1766217045940,-151.0,0.00017,2]
[399263084,1766217045950,-250.0,0.00017,2]
[399263085,1766217045960,-664795.61561956,0.00017,2]
[399263086,1766217046272,-656.09724841,0.00012753,2]
[399263087,1766217046378,-331.18554937,0.00012753,2]
[399263088,1766217046608,-602.0,0.00012753,2]
[399263089,1766217046654,-265.60627094,0.00012753,2]
[399263090,1766217046666,-979.83049372,0.00012753,2]
[399263091,1766217046678,-1820.82,0.00012753,2]
[399263092,1766217046690,-31070.25136624,0.00012753,2]
[399263103,1766217140847,-255.286,0.00012498,2]
[399263104,1766217140872,-3444.714,0.00012498,2]
[399263105,1766217185730,-1056.504,0.00012498,2]
[399263106,1766217185752,-250.0,0.00012523,2]
[399263107,1766217185774,-195.0,0.00012561,2]
[399263108,1766217185796,-300.0,0.00012652,2]
[399263109,1766217185817,-11198.496,0.00012653,2]
[399263188,1766217817845,174.07,0.00010181,2]
[399263328,1766218232300,-151.0,0.0001255,2]
[399263329,1766218232310,-300.0,0.00012551,2]
[399263330,1766218232320,-37.05298989,0.00012551,2]
[399263331,1766218232332,-1162.94701011,0.00012551,2]
[399263332,1766218232341,-257.37395324,0.00012552,2]
[399263333,1766218232351,-389.4856281,0.00012552,2]
[399263334,1766218232360,-161.15031483,0.00012552,2]
[399263335,1766218232369,-150.0,0.00012552,2]
[399263336,1766218232378,-49.04309372,0.00012552,2]
[399263337,1766218232392,-108.95817188,0.00012552,2]
[399263338,1766218232401,-2552.42909233,0.00012552,2]
[399263339,1766218232419,-1391.9138548,0.00012552,2]
[399263340,1766218232435,-4599.40517227,0.00012552,2]
[399263341,1766218232446,-27297.31604031,0.00012553,2]
[399263342,1766218232463,-1825.63806857,0.00012553,2]
[399263343,1766218232493,-405.05,0.00012553,2]
[399263344,1766218232624,-371.3259998,0.00012553,2]
[399263549,1766218238400,-2401.45610874,0.00012553,2]
[399263550,1766218238470,-257.16204989,0.00012553,2]
[399263551,1766218238548,-967442.05173269,0.00012553,2]
[399263552,1766218238558,-195.0,0.00012652,2]
[399263553,1766218238568,-250.0,0.00012652,2]
[399263554,1766218238577,-300.0,0.00012652,2]
[399263555,1766218238587,-244.66670765,0.00012652,2]
[399263556,1766218238596,-22292.9108,0.00012653,2]
[399263557,1766218238606,-2500.0,0.00012653,2]
[399263558,1766218238619,-4692.518,0.0001267,2]
[399263559,1766218238628,-268.051,0.0001267,2]
[399263560,1766218238637,-1600.0,0.00012694,2]
[399263561,1766218238647,-151.0,0.00012745,2]
[399263562,1766218238656,-151.0,0.00012745,2]
[399263563,1766218238666,-151.0,0.00012745,2]
[399263564,1766218238675,-151.0,0.00012745,2]
[399263565,1766218238685,-151.0,0.00012745,2]
[399263566,1766218238695,-200.0,0.00012745,2]
[399263567,1766218238704,-151.0,0.00012745,2]
[399263568,1766218238713,-151.0,0.00012745,2]
[399263569,1766218238723,-151.0,0.00012745,2]
[399263570,1766218238732,-151.0,0.00012745,2]
[399263571,1766218238742,-151.0,0.00012745,2]
[399263572,1766218238751,-202.61910419,0.00012745,2]
[399263573,1766218238760,-500.0,0.00012745,2]
[399263574,1766218238770,-200.0,0.00012745,2]
[399263575,1766218238779,-500.0,0.00012745,2]
[399263576,1766218238789,-500.0,0.00012745,2]
[399263577,1766218238799,-500.0,0.00012745,2]
[399263578,1766218238808,-500.0,0.00012745,2]
[399263579,1766218238818,-500.0,0.00012745,2]
[399263580,1766218238827,-500.0,0.00012745,2]
[399263581,1766218238836,-500.0,0.00012745,2]
[399263582,1766218238845,-500.0,0.00012745,2]
[399263583,1766218238855,-500.0,0.00012745,2]
[399263584,1766218238865,-500.0,0.00012745,2]
[399263585,1766218238875,-500.0,0.00012745,2]
[399263586,1766218238884,-500.0,0.00012745,2]
[399263587,1766218238894,-500.0,0.00012745,2]
[399263588,1766218238903,-500.0,0.00012745,2]
[399263589,1766218238913,-500.0,0.00012745,2]
[399263590,1766218238922,-500.0,0.00012745,2]
[399263591,1766218238932,-500.0,0.00012745,2]
[399263592,1766218238942,-500.0,0.00012745,2]
[399263593,1766218238952,-500.0,0.00012745,2]
[399263594,1766218238961,-500.0,0.00012745,2]
[399263595,1766218238970,-500.0,0.00012745,2]
[399263596,1766218238979,-500.0,0.00012745,2]
[399263597,1766218238989,-200.0,0.00012745,2]
[399263598,1766218238998,-151.0,0.00012745,2]
[399263599,1766218239008,-151.0,0.00012745,2]
[399263600,1766218239018,-151.0,0.00012745,2]
[399263601,1766218239027,-151.0,0.00012745,2]
[399263602,1766218239037,-151.0,0.00012745,2]
[399263603,1766218239047,-151.0,0.00012745,2]
[399263604,1766218239056,-151.0,0.00012745,2]
[399263605,1766218239066,-151.0,0.00012745,2]
[399263606,1766218239076,-151.0,0.00012745,2]
[399263607,1766218239087,-151.0,0.00012745,2]
[399263608,1766218239097,-151.0,0.00012745,2]
[399263609,1766218239107,-9999.99,0.00012752,2]
[399263610,1766218239116,-299.99,0.00012752,2]
[399263611,1766218239125,-150.99,0.00012752,2]
[399263612,1766218239135,-150.99,0.00012752,2]
[399263613,1766218239144,-999.99,0.00012752,2]
[399263614,1766218239153,-9999.99,0.00012752,2]
[399263615,1766218239163,-9999.99,0.00012752,2]
[399263616,1766218239172,-1000.0,0.00012789,2]
[399263617,1766218239182,-150.0,0.00012819,2]
[399263618,1766218239191,-1225.98,0.00012895,2]
[399263619,1766218239200,-8543.74811933,0.00013035,2]
[399263620,1766218239209,-500.0,0.00013036,2]
[399263621,1766218239219,-161.1503148,0.00013173,2]
[399263622,1766218239229,-200.0,0.00013293,2]
[399263623,1766218239239,-500.0,0.00013293,2]
[399263624,1766218239248,-200.0,0.00013293,2]
[399263625,1766218239257,-8543.74811933,0.00013518,2]
[399263626,1766218239267,-250.0,0.00013644,2]
[399263627,1766218239277,-500.0,0.00013698,2]
[399263628,1766218239286,-500.0,0.00013698,2]
[399263629,1766218239295,-500.0,0.00013698,2]
[399263630,1766218239304,-500.0,0.00013698,2]
[399263631,1766218239315,-500.0,0.00013698,2]
[399263632,1766218239323,-500.0,0.00013698,2]
[399263633,1766218239332,-500.0,0.00013698,2]
[399263634,1766218239342,-500.0,0.00013698,2]
[399263635,1766218239351,-500.0,0.00013698,2]
[399263636,1766218239360,-500.0,0.00013698,2]
[399263637,1766218239369,-469.51043734,0.00013698,2]
[399263638,1766218239379,-500.0,0.00013698,2]
[399263639,1766218239388,-500.0,0.00013698,2]
[399263640,1766218239398,-500.0,0.00013698,2]
[399263641,1766218239407,-500.0,0.00013698,2]
[399263642,1766218239416,-1000.0,0.00013699,2]
[399263643,1766218239426,-166.66,0.00013699,2]
[399263644,1766218239435,-500.0,0.00013699,2]
[399263645,1766218239444,-500.0,0.00013699,2]
[399263646,1766218239454,-562.52838856,0.00013699,2]
[399263647,1766218239463,-500.0,0.00013773,2]
[399263648,1766218239472,-500.0,0.00013773,2]
[399263649,1766218239481,-161.1503148,0.00013794,2]
[399263650,1766218239490,-302.26771089,0.00013805,2]
[399263651,1766218239499,-300.0,0.00013805,2]
[399263652,1766218239509,-195.0,0.00013805,2]
[399263653,1766218239518,-300.0,0.00013805,2]
[399263654,1766218239527,-300.0,0.00013807,2]
[399263655,1766218239536,-300.0,0.00013807,2]
[399263656,1766218239546,-195.0,0.00013807,2]
[399263657,1766218239556,-200.0,0.0001382,2]
[399263658,1766218239566,-166.66,0.00013836,2]
[399263659,1766218239575,-300.0,0.00013917,2]
[399263660,1766218239585,-151.4761841,0.00013917,2]
[399263661,1766218239596,-300.0,0.00013917,2]
[399263662,1766218239606,-300.0,0.00013917,2]
[399263663,1766218239618,-250.0,0.00013917,2]
[399263664,1766218239627,-195.0,0.00013917,2]
[399263665,1766218239637,-300.0,0.00013917,2]
[399263666,1766218239647,-300.0,0.00013917,2]
[399263667,1766218239656,-300.0,0.00013917,2]
[399263668,1766218239667,-300.0,0.00013917,2]
[399263669,1766218239676,-300.0,0.00013917,2]
[399263670,1766218239685,-300.0,0.00013917,2]
[399263671,1766218239696,-166.66,0.00013973,2]
[399263672,1766218239705,-8543.74811933,0.00014001,2]
[399263673,1766218239715,-166.66,0.0001411,2]
[399263674,1766218239724,-531.25264543,0.00014163,2]
[399263675,1766218239733,-166.66,0.00014247,2]
[399263676,1766218239743,-1600.0,0.0001428,2]
[399263677,1766218239752,-501.29502757,0.0001432,2]
[399263678,1766218239763,-1000.0,0.00014321,2]
[399263679,1766218239773,-1000.0,0.00014321,2]
[399263680,1766218239784,-166.66,0.00014384,2]
[399263681,1766218239794,-161.1503148,0.00014415,2]
[399263682,1766218239803,-8543.74811933,0.00014484,2]
[399263683,1766218239813,-7250.82383076,0.00014561,2]
[399263684,1766218239821,-206.67,0.00014613,2]
[399263685,1766218239831,-1550.14356683,0.00014617,2]
[399263686,1766218239840,-14440.0,0.00014627,2]
[399263687,1766218239849,-500.0,0.00014766,2]
[399263688,1766218239859,-1609.34995974,0.00014868,2]
[399263689,1766218239869,-1500.0,0.00014868,2]
[399263690,1766218239879,-8543.74811933,0.00014968,2]
[399263691,1766218239889,-7250.82383076,0.00015028,2]
[399263692,1766218239898,-161.1503148,0.00015037,2]
[399263693,1766218239907,-166.66,0.00015136,2]
[399263694,1766218239916,-500.0,0.00015151,2]
[399263695,1766218239927,-174.07,0.00015271,2]
[399263696,1766218239936,-150.0,0.00015288,2]
[399263697,1766218239946,-152.94375339,0.00015288,2]
[399263698,1766218239956,-152.70737667,0.00015288,2]
[399263699,1766218239965,-900.0,0.00015365,2]
[399263700,1766218239975,-8543.74811933,0.00015451,2]
[399263701,1766218239985,-207.4,0.00015484,2]
[399263702,1766218239994,-7250.82383076,0.00015496,2]
[399263703,1766218240004,-500.0,0.00015616,2]
[399263704,1766218240014,-150.0,0.00015616,2]
[399263705,1766218240023,-150.0,0.00015616,2]
[399263706,1766218240033,-150.0,0.00015616,2]
[399263707,1766218240042,-150.0,0.00015616,2]
[399263708,1766218240052,-494.0,0.00015616,2]
[399263709,1766218240061,-500.0,0.00015616,2]
[399263710,1766218240072,-150.0,0.00015616,2]
[399263711,1766218240082,-500.0,0.00015616,2]
[399263712,1766218240091,-150.0,0.00015616,2]
[399263713,1766218240100,-500.0,0.00015616,2]
[399263714,1766218240109,-476.0,0.00015616,2]
[399263715,1766218240119,-150.0,0.00015616,2]
[399263716,1766218240128,-150.0,0.00015616,2]
[399263717,1766218240138,-150.0,0.00015616,2]
[399263718,1766218240148,-500.0,0.00015616,2]
[399263719,1766218240158,-150.0,0.00015616,2]
[399263720,1766218240167,-794.0,0.00015616,2]
[399263721,1766218240177,-500.0,0.00015616,2]
[399263722,1766218240186,-150.0,0.00015616,2]
[399263723,1766218240196,-150.0,0.00015616,2]
[399263724,1766218240205,-1012.0,0.00015616,2]
[399263725,1766218240215,-500.0,0.00015616,2]
[399263726,1766218240224,-150.0,0.00015616,2]
[399263727,1766218240234,-151.21834691,0.00015616,2]
[399263728,1766218240243,-500.0,0.00015616,2]
[399263729,1766218240253,-150.0,0.00015616,2]
[399263730,1766218240263,-150.0,0.00015616,2]
[399263731,1766218240272,-500.0,0.00015616,2]
[399263732,1766218240281,-150.0,0.00015616,2]
[399263733,1766218240291,-231.95831861,0.00015616,2]
[399263734,1766218240300,-150.0,0.00015616,2]
[399263735,1766218240309,-150.0,0.00015616,2]
[399263736,1766218240319,-150.0,0.00015616,2]
[399263737,1766218240327,-150.0,0.00015616,2]
[399263738,1766218240336,-150.0,0.00015616,2]
[399263739,1766218240346,-164.7217925,0.00015616,2]
[399263740,1766218240356,-150.0,0.00015616,2]
[399263741,1766218240366,-256.61900573,0.00015616,2]
[399263742,1766218240375,-150.0,0.00015616,2]
[399263744,1766218240384,-150.0,0.00015616,2]
[399263746,1766218240394,-166.66,0.00015635,2]
[399263748,1766218240403,-161.1503148,0.00015658,2]
[399263750,1766218240412,-528.93385388,0.00015753,2]
[399263752,1766218240421,-153.22066729,0.00015753,2]
[399263753,1766218240430,-150.0,0.00015753,2]
[399263754,1766218240439,-150.0,0.00015753,2]
[399263755,1766218240448,-150.0,0.00015753,2]
[399263756,1766218240458,-494.0,0.00015753,2]
[399263757,1766218240467,-500.0,0.00015753,2]
[399263758,1766218240477,-150.0,0.00015753,2]
[399263759,1766218240486,-500.0,0.00015753,2]
[399263760,1766218240495,-150.0,0.00015753,2]
[399263761,1766218240504,-476.0,0.00015753,2]
[399263762,1766218240513,-500.0,0.00015753,2]
[399263763,1766218240523,-150.0,0.00015753,2]
[399263764,1766218240532,-150.0,0.00015753,2]
[399263765,1766218240541,-500.0,0.00015753,2]
[399263766,1766218240551,-794.0,0.00015753,2]
[399263767,1766218240560,-500.0,0.00015753,2]
[399263768,1766218240569,-150.0,0.00015753,2]
[399263769,1766218240578,-1012.0,0.00015753,2]
[399263770,1766218240587,-500.0,0.00015753,2]
[399263771,1766218240599,-203.74835527,0.00015753,2]
[399263772,1766218240610,-500.0,0.00015753,2]
[399263773,1766218240624,-150.0,0.00015753,2]
[399263774,1766218240634,-151.61208378,0.00015753,2]
[399263775,1766218240643,-500.0,0.00015753,2]
[399263776,1766218240654,-150.0,0.00015753,2]
[399263777,1766218240666,-150.0,0.00015753,2]
[399263778,1766218240676,-150.0,0.00015753,2]
[399263779,1766218240691,-150.0,0.00015753,2]
[399263780,1766218240703,-1600.0,0.00015867,2]
[399263781,1766218240712,-150.0,0.0001589,2]
[399263782,1766218240722,-150.0,0.0001589,2]
[399263786,1766218240952,-150.0,0.0001589,2]
[399263787,1766218240964,-494.0,0.0001589,2]
[399263788,1766218240973,-500.0,0.0001589,2]
[399263789,1766218240982,-201.70181775,0.0001589,2]
[399263790,1766218240991,-500.0,0.0001589,2]
[399263791,1766218241001,-150.0,0.0001589,2]
[399263792,1766218241010,-476.0,0.0001589,2]
[399263793,1766218241019,-584.32985892,0.0001589,2]
[399263794,1766218241029,-150.0,0.0001589,2]
[399263795,1766218241039,-150.0,0.0001589,2]
[399263796,1766218241048,-500.0,0.0001589,2]
[399263797,1766218241057,-794.0,0.0001589,2]
[399263798,1766218241067,-500.0,0.0001589,2]
[399263799,1766218241076,-150.0,0.0001589,2]
[399263800,1766218241086,-1012.0,0.0001589,2]
[399263801,1766218241095,-500.0,0.0001589,2]
[399263802,1766218241104,-230.7089659,0.0001589,2]
[399263803,1766218241114,-150.0,0.0001589,2]
[399263804,1766218241123,-500.0,0.0001589,2]
[399263806,1766218241132,-200.0,0.0001589,2]
[399263808,1766218241142,-200.0,0.0001589,2]
[399263809,1766218241152,-150.0,0.0001589,2]
[399263810,1766218241162,-167.42824898,0.0001589,2]
[399263811,1766218241171,-8543.74811933,0.00015934,2]
[399263812,1766218241181,-7250.82383076,0.00015964,2]
[399263813,1766218241190,-150.0,0.00016027,2]
[399263814,1766218241199,-150.0,0.00016027,2]
[399263815,1766218241208,-150.0,0.00016027,2]
[399263816,1766218241217,-494.0,0.00016027,2]
[399263817,1766218241227,-500.0,0.00016027,2]
[399263818,1766218241236,-500.0,0.00016027,2]
[399263819,1766218241245,-250.0,0.00016027,2]
[399263820,1766218241254,-476.0,0.00016027,2]
[399263821,1766218241264,-150.0,0.00016027,2]
[399263822,1766218241273,-150.0,0.00016027,2]
[399263823,1766218241283,-500.0,0.00016027,2]
[399263824,1766218241292,-794.0,0.00016027,2]
[399263825,1766218241302,-500.0,0.00016027,2]
[399263826,1766218241311,-250.0,0.00016027,2]
[399263827,1766218241321,-1012.0,0.00016027,2]
[399263828,1766218241330,-500.0,0.00016027,2]
[399263829,1766218241339,-200.0,0.00016027,2]
[399263830,1766218241348,-151.31035432,0.00016027,2]
[399263831,1766218241358,-150.0,0.00016027,2]
[399263832,1766218241367,-166.66,0.00016135,2]
[399263833,1766218241376,-150.0,0.00016137,2]
[399263834,1766218241385,-151.0,0.00016146,2]
[399263835,1766218241395,-500.0,0.00016148,2]
[399263836,1766218241404,-151.0,0.00016149,2]
[399263837,1766218241413,-578.20924308,0.00016149,2]
[399263838,1766218241422,-592.95411986,0.00016149,2]
[399263839,1766218241430,-9552.16786547,0.00016149,2]
[399263840,1766218241439,-1199.0,0.00016149,2]
[399263841,1766218241448,-250.0,0.00016149,2]
[399263842,1766218241457,-250.0,0.00016149,2]
[399263843,1766218241466,-250.0,0.00016149,2]
[399263844,1766218241475,-250.0,0.00016149,2]
[399263845,1766218241484,-173.95994129,0.00016149,2]
[399263846,1766218241493,-1000.0,0.00016149,2]
[399263847,1766218241503,-151.0,0.00016149,2]
[399263848,1766218241513,-1000.0,0.00016149,2]
[399263849,1766218241522,-1000.0,0.00016149,2]
[399263850,1766218241531,-1000.0,0.00016149,2]
[399263851,1766218241541,-1000.0,0.00016149,2]
[399263852,1766218241550,-1000.0,0.00016149,2]
[399263853,1766218241559,-574.12855637,0.00016149,2]
[399263854,1766218241568,-1000.0,0.00016149,2]
[399263855,1766218241577,-151.0,0.00016149,2]
[399263856,1766218241586,-1000.0,0.00016149,2]
[399263857,1766218241595,-1000.0,0.00016149,2]
[399263858,1766218241604,-5000.0,0.00016149,2]
[399263859,1766218241613,-151.49542101,0.00016149,2]
[399263860,1766218241624,-500.0,0.00016149,2]
[399263861,1766218241633,-1000.0,0.00016149,2]
[399263862,1766218241642,-5000.0,0.00016149,2]
[399263863,1766218241651,-500.0,0.00016149,2]
[399263864,1766218241661,-1000.0,0.00016149,2]
[399263865,1766218241670,-5000.0,0.00016149,2]
[399263866,1766218241679,-500.0,0.00016149,2]
[399263867,1766218241689,-1000.0,0.00016149,2]
[399263868,1766218241699,-5000.0,0.00016149,2]
[399263869,1766218241709,-500.0,0.00016149,2]
[399263870,1766218241718,-5000.0,0.00016149,2]
[399263871,1766218241727,-209.40437684,0.00016149,2]
[399263872,1766218241736,-500.0,0.00016149,2]
[399263873,1766218241747,-5000.0,0.00016149,2]
[399263874,1766218241758,-500.0,0.00016149,2]
[399263875,1766218241767,-5000.0,0.00016149,2]
[399263876,1766218241776,-500.0,0.00016149,2]
[399263877,1766218241786,-5000.0,0.00016149,2]
[399263878,1766218241795,-500.0,0.00016149,2]
[399263879,1766218241804,-5000.0,0.00016149,2]
[399263880,1766218241813,-500.0,0.00016149,2]
[399263881,1766218241822,-5000.0,0.00016149,2]
[399263882,1766218241831,-500.0,0.00016149,2]
[399263883,1766218241840,-2000.0,0.00016149,2]
[399263884,1766218241849,-5000.0,0.00016149,2]
[399263885,1766218241858,-500.0,0.00016149,2]
[399263886,1766218241867,-2000.0,0.00016149,2]
[399263887,1766218241876,-2000.0,0.00016149,2]
[399263888,1766218241886,-220.0,0.00016149,2]
[399263889,1766218241894,-2000.0,0.00016149,2]
[399263890,1766218241903,-220.0,0.00016149,2]
[399263891,1766218241913,-2000.0,0.00016149,2]
[399263892,1766218241923,-220.0,0.00016149,2]
[399263893,1766218241932,-2000.0,0.00016149,2]
[399263894,1766218241943,-1000.0,0.00016149,2]
[399263895,1766218241952,-220.0,0.00016149,2]
[399263896,1766218241962,-1000.0,0.00016149,2]
[399263897,1766218241971,-220.0,0.00016149,2]
[399263898,1766218241980,-2000.0,0.00016149,2]
[399263899,1766218241990,-300.0,0.00016149,2]
[399263900,1766218241999,-2000.0,0.00016149,2]
[399263901,1766218242008,-1000.0,0.00016149,2]
[399263902,1766218242018,-220.0,0.00016149,2]
[399263903,1766218242028,-2000.0,0.00016149,2]
[399263904,1766218242038,-1000.0,0.00016149,2]
[399263905,1766218242047,-252.4499311,0.00016149,2]
[399263906,1766218242056,-2000.0,0.00016149,2]
[399263907,1766218242066,-1000.0,0.00016149,2]
[399263908,1766218242075,-2000.0,0.00016149,2]
[399263909,1766218242085,-1000.0,0.00016149,2]
[399263910,1766218242095,-5000.0,0.00016149,2]
[399263911,1766218242105,-1000.0,0.00016149,2]
[399263912,1766218242114,-5000.0,0.00016149,2]
[399263913,1766218242123,-1000.0,0.00016149,2]
[399263914,1766218242134,-5000.0,0.00016149,2]
[399263915,1766218242144,-5000.0,0.00016149,2]
[399263916,1766218242153,-1000.0,0.00016149,2]
[399263917,1766218242163,-1000.0,0.00016149,2]
[399263918,1766218242172,-5000.0,0.00016149,2]
[399263919,1766218242182,-1000.0,0.00016149,2]
[399263920,1766218242191,-1000.0,0.00016149,2]
[399263921,1766218242201,-5000.0,0.00016149,2]
[399263922,1766218242212,-1000.0,0.00016149,2]
[399263923,1766218242222,-1000.0,0.00016149,2]
[399263924,1766218242231,-5000.0,0.00016149,2]
[399263925,1766218242240,-5000.0,0.00016149,2]
[399263926,1766218242250,-1000.0,0.00016149,2]
[399263927,1766218242259,-5000.0,0.00016149,2]
[399263928,1766218242269,-1000.0,0.00016149,2]
[399263929,1766218242278,-5000.0,0.00016149,2]
[399263930,1766218242288,-1000.0,0.00016149,2]
[399263931,1766218242297,-620.0,0.00016149,2]
[399263932,1766218242307,-5000.0,0.00016149,2]
[399263933,1766218242317,-1000.0,0.00016149,2]
[399263934,1766218242327,-1000.0,0.00016149,2]
[399263935,1766218242337,-500.0,0.00016149,2]
[399263936,1766218242347,-500.0,0.00016149,2]
[399263937,1766218242356,-1000.0,0.00016149,2]
[399263938,1766218242366,-500.0,0.00016149,2]
[399263939,1766218242376,-686.66093114,0.00016149,2]
[399263940,1766218242387,-500.0,0.00016149,2]
[399263941,1766218242396,-500.0,0.00016149,2]
[399263942,1766218242407,-500.0,0.00016149,2]
[399263943,1766218242416,-500.0,0.00016149,2]
[399263944,1766218242427,-500.0,0.00016149,2]
[399263945,1766218242437,-500.0,0.00016149,2]
[399263946,1766218242447,-500.0,0.00016149,2]
[399263947,1766218242456,-500.0,0.00016149,2]
[399263948,1766218242466,-500.0,0.00016149,2]
[399263949,1766218242475,-500.0,0.00016149,2]
[399263950,1766218242484,-500.0,0.00016149,2]
[399263951,1766218242493,-500.0,0.00016149,2]
[399263952,1766218242502,-500.0,0.00016149,2]
[399263953,1766218242511,-500.0,0.00016149,2]
[399263954,1766218242520,-500.0,0.00016149,2]
[399263955,1766218242529,-500.0,0.00016149,2]
[399263956,1766218242539,-500.0,0.00016149,2]
[399263957,1766218242548,-500.0,0.00016149,2]
[399263958,1766218242558,-500.0,0.00016149,2]
[399263959,1766218242569,-200.0,0.00016149,2]
[399263960,1766218242578,-207.4,0.00016149,2]
[399263961,1766218242587,-215.0738,0.00016149,2]
[399263962,1766218242597,-223.0315306,0.00016149,2]
[399263963,1766218242606,-231.28369723,0.00016149,2]
[399263964,1766218242618,-239.84119403,0.00016149,2]
[399263965,1766218242628,-248.71531821,0.00016149,2]